bitfinex-derivatives/quotes_SOLF0:USTF0_20260305
["timestamp","ask_amount","ask_price","bid_price","bid_amount"]
[1772740532832,13.74673297,88.709,88.656,10.15]
[1772740533026,3.60273297,88.708,88.656,10.15]
[1772740533232,3.57974135,88.73,88.681,3.6317212]
[1772740533432,3.60273297,88.74,88.681,3.6317212]
[1772740533433,3.60273297,88.739,88.69,3.57974135]
[1772740533632,7.18247432,88.75,88.7,3.57974135]
[1772740533833,3.60273297,88.749,88.7,3.57974135]
[1772740534029,3.60273297,88.729,88.68,3.57974135]
[1772740534635,3.60273297,88.729,88.682,10.146]
[1772740534934,3.60273297,88.729,88.682,13.7777212]
[1772740535538,13.74373297,88.729,88.682,3.6317212]
[1772740537034,10.142,88.722,88.682,3.6317212]
[1772740537235,10.142,88.722,88.674,10.147]
[1772740537438,10.142,88.722,88.674,13.7787212]
[1772740538434,10.142,88.719,88.674,13.7787212]
[1772740538635,3.60273297,88.729,88.68,3.57974135]
[1772740538837,3.57974135,88.74,88.69,3.57974135]
[1772740539541,10.139,88.746,88.694,3.6317212]
[1772740541543,10.139,88.746,88.696,3.6317212]
[1772740542144,3.60273297,88.756,88.67,9.58131151]
[1772740542145,10.138,88.755,88.698,3.6317212]
[1772740542446,13.74073297,88.755,88.698,3.6317212]
[1772740542841,13.74173297,88.751,88.701,10.144]
[1772740543943,3.60273297,88.751,88.702,3.6317212]
[1772740544942,3.60273297,88.768,88.704,3.6317212]
[1772740545545,10.137,88.764,88.707,3.6317212]
[1772740546146,3.60273297,88.782,88.717,3.6317212]
[1772740547542,13.73773297,88.782,88.724,3.6317212]
[1772740548044,3.60273297,88.787,88.734,3.6317212]
[1772740548245,3.60273297,88.801,88.734,3.6317212]
[1772740548646,10.134,88.792,88.737,3.6317212]
[1772740548846,13.73673297,88.792,88.737,3.6317212]
[1772740549050,3.60273297,88.791,88.737,3.6317212]
[1772740549247,10.135,88.786,88.737,3.6317212]
[1772740549652,3.60273297,88.785,88.737,3.6317212]
[1772740552154,10.134,88.795,88.737,3.6317212]
[1772740553355,3.60273297,88.791,88.739,10.14]
[1772740553964,10.134,88.79,88.739,10.14]
[1772740554450,13.73673297,88.79,88.739,10.14]
[1772740554656,3.60273297,88.789,88.739,10.14]
[1772740555157,3.60273297,88.786,88.74,3.6317212]
[1772740556055,3.60273297,88.8,88.742,3.6317212]
[1772740557458,9.58131151,88.81,88.742,3.6317212]
[1772740557459,3.60273297,88.792,88.742,3.6317212]
[1772740557852,3.60273297,88.792,88.71,9.58131151]
[1772740558059,3.60273297,88.792,88.711,3.6317212]
[1772740558253,3.60273297,88.79,88.733,3.6317212]
[1772740559356,3.60273297,88.79,88.744,10.139]
[1772740559558,3.60273297,88.79,88.744,3.6317212]
[1772740560361,3.60273297,88.79,88.744,13.7707212]
[1772740560559,3.60273297,88.79,88.744,3.6317212]
[1772740560761,3.60273297,88.79,88.73,3.89333289]
[1772740561062,3.60273297,88.79,88.691,3.89333289]
[1772740561063,3.8942487,88.779,88.691,3.89333289]
[1772740561462,10.136,88.774,88.723,10.142]
[1772740561761,3.8942487,88.793,88.724,3.89333289]
[1772740562163,3.8942487,88.793,88.745,3.89333289]
[1772740562558,3.57318317,88.79,88.745,3.89333289]
[1772740563555,3.57318317,88.79,88.747,3.89333289]
[1772740564162,3.8942487,88.807,88.753,3.89333289]
[1772740564358,7.46743187,88.79,88.74,3.57318317]
[1772740564563,7.46743187,88.79,88.741,3.89333289]
[1772740564759,7.46743187,88.79,88.746,10.139]
[1772740565266,7.46743187,88.79,88.746,14.03233289]
[1772740565565,3.8942487,88.79,88.749,10.139]
[1772740565765,3.57318317,88.8,88.751,3.89333289]
[1772740567469,3.57318317,88.8,88.755,10.138]
[1772740568068,3.57318317,88.8,88.756,3.89333289]
[1772740568263,3.8942487,88.804,88.758,3.89333289]
[1772740568467,3.8942487,88.804,88.76,3.57318317]
[1772740568763,3.8942487,88.804,88.761,3.89333289]
[1772740569264,3.57318317,88.8,88.75,3.57318317]
[1772740569659,3.57318317,88.8,88.751,3.89333289]
[1772740570367,7.46743187,88.8,88.757,10.138]
[1772740570669,3.8942487,88.799,88.757,14.03133289]
[1772740572670,3.8942487,88.799,88.761,10.137]
[1772740573571,3.8942487,88.799,88.752,10.139]
[1772740575571,3.8942487,88.797,88.745,3.89333289]
[1772740575773,3.8942487,88.797,88.75,3.57318317]
[1772740576269,3.57318317,88.79,88.745,3.89333289]
[1772740576667,3.8942487,88.789,88.745,3.89333289]
[1772740577069,3.8942487,88.789,88.752,10.139]
[1772740577568,3.8942487,88.789,88.745,3.89333289]
[1772740578075,3.8942487,88.769,88.721,3.89333289]
[1772740578671,10.137,88.767,88.721,3.89333289]
[1772740579470,3.57318317,88.77,88.73,3.89333289]
[1772740579679,10.35149634,88.822,88.731,3.89333289]
[1772740579680,3.57318317,88.78,88.731,3.89333289]
[1772740580373,3.57318317,88.78,88.743,10.14]
[1772740580677,3.8942487,88.783,88.743,10.14]
[1772740580876,10.134,88.792,88.744,3.89333289]
[1772740582173,14.0282487,88.792,88.744,3.89333289]
[1772740582580,3.57318317,88.79,88.744,3.89333289]
[1772740582875,3.8942487,88.807,88.761,3.89333289]
[1772740583173,3.57318317,88.82,88.761,3.89333289]
[1772740583378,3.8942487,88.819,88.771,3.89333289]
[1772740584081,3.8942487,88.809,88.763,10.137]
[1772740584283,3.57318317,88.8,88.754,10.138]
[1772740584579,3.8942487,88.809,88.761,3.89333289]
[1772740586382,3.8942487,88.809,88.763,10.137]
[1772740589183,3.8942487,88.809,88.763,13.99113651]
[1772740589780,10.131,88.815,88.766,3.85413651]
[1772740591184,3.57318317,88.82,88.77,3.57318317]
[1772740591385,3.74262303,88.819,88.771,3.90820722]
[1772740591689,3.57318317,88.81,88.76,3.57318317]
[1772740591890,3.57318317,88.81,88.76,7.48139039]
[1772740592291,3.74262303,88.808,88.76,3.90820722]
[1772740592889,3.74262303,88.798,88.75,13.71218317]
[1772740593190,3.74262303,88.798,88.75,10.139]
[1772740593690,3.74262303,88.798,88.751,3.90820722]
[1772740594392,10.134,88.797,88.751,3.90820722]
[1772740595488,3.74262303,88.798,88.751,3.90820722]
[1772740595489,10.134,88.791,88.751,3.90820722]
[1772740595692,3.74262303,88.798,88.751,3.90820722]
[1772740596394,3.74262303,88.798,88.752,10.139]
[1772740596595,3.74262303,88.798,88.751,3.90820722]
[1772740597092,3.74262303,88.798,88.751,14.04720722]
[1772740597395,3.74262303,88.798,88.752,3.90820722]
[1772740598396,3.74262303,88.798,88.755,10.138]
[1772740602402,3.74262303,88.798,88.752,3.90820722]
[1772740602596,3.74262303,88.798,88.719,20.285]
[1772740602597,3.74262303,88.809,88.761,3.90820722]
[1772740602794,3.74262303,88.809,88.77,3.5727753]
[1772740603100,3.74262303,88.809,88.77,7.48098252]
[1772740603300,7.31539833,88.82,88.773,3.90820722]
[1772740604401,3.74262303,88.817,88.773,3.90820722]
[1772740604602,3.74262303,88.817,88.72,27.95480846]
[1772740604603,3.74262303,88.789,88.741,3.90820722]
[1772740604923,3.5727753,88.78,88.741,3.90820722]
[1772740605196,3.74262303,88.789,88.741,3.90820722]
[1772740605499,3.74262303,88.788,88.741,14.04820722]
[1772740606294,3.74262303,88.788,88.75,3.5727753]
[1772740606497,10.134,88.797,88.751,3.90820722]
[1772740606894,3.5727753,88.8,88.753,3.90820722]
[1772740607099,3.74262303,88.799,88.753,3.90820722]
[1772740608503,3.74262303,88.789,88.741,3.90820722]
[1772740608698,3.5727753,88.78,88.741,3.90820722]
[1772740609103,3.74262303,88.789,88.741,3.90820722]
[1772740610607,3.5727753,88.8,88.744,3.90820722]
[1772740610803,13.87562303,88.803,88.76,7.48098252]
[1772740610804,3.74262303,88.803,88.76,7.48098252]
[1772740611309,10.132,88.813,88.763,3.90820722]
[1772740611607,3.5727753,88.81,88.763,3.90820722]
[1772740611807,10.132,88.808,88.764,10.137]
[1772740612607,3.5727753,88.81,88.764,14.04520722]
[1772740612807,7.31539833,88.81,88.764,14.04520722]
[1772740613007,7.31539833,88.81,88.765,3.90820722]
[1772740614508,10.132,88.809,88.765,3.90820722]
[1772740617509,3.74262303,88.808,88.765,3.90820722]
[1772740617808,3.74262303,88.806,88.765,3.90820722]
[1772740618205,10.133,88.805,88.765,3.90820722]
[1772740619107,3.5727753,88.8,88.765,3.90820722]
[1772740620008,10.35149634,88.835,88.765,3.90820722]
[1772740620009,3.5727753,88.81,88.765,3.90820722]
[1772740620206,3.74262303,88.814,88.771,3.87779909]
[1772740620706,3.64097063,88.84,88.791,3.87779909]
[1772740620903,3.5727753,88.85,88.801,3.87779909]
[1772740621106,3.64097063,88.849,88.801,3.87779909]
[1772740621307,3.64097063,88.838,88.794,10.134]
[1772740621503,3.64097063,88.838,88.79,7.45057439]
[1772740621698,3.64097063,88.838,88.791,3.87779909]
[1772740622609,10.129,88.836,88.791,3.87779909]
[1772740623609,3.64097063,88.838,88.793,14.01179909]
[1772740623814,3.64097063,88.838,88.794,3.87779909]
[1772740624706,8.97562849,88.876,88.811,3.87779909]
[1772740624707,10.126,88.859,88.811,3.87779909]
[1772740625604,3.64097063,88.86,88.813,3.87779909]
[1772740627407,10.126,88.859,88.813,3.87779909]
[1772740628711,7.21374593,88.86,88.813,3.87779909]
[1772740628908,3.64097063,88.859,88.813,3.87779909]
[1772740630406,3.64097063,88.849,88.801,3.87779909]
[1772740632905,3.64097063,88.849,88.803,3.87779909]
[1772740633916,3.5727753,88.84,88.803,3.87779909]
[1772740634511,3.5727753,88.84,88.79,3.5727753]
[1772740634716,1.95933259,88.884,88.788,10.134]
[1772740634717,7.21374593,88.83,88.788,14.01179909]
[1772740634921,7.21374593,88.83,88.788,3.87779909]
[1772740636217,3.64097063,88.83,88.788,3.87779909]
[1772740636418,3.64097063,88.83,88.789,10.134]
[1772740636718,3.64097063,88.829,88.788,3.87779909]
[1772740637122,3.64097063,88.819,88.773,3.87779909]
[1772740637821,13.77197063,88.819,88.774,10.136]
[1772740638515,13.77197063,88.819,88.774,14.01379909]
[1772740639030,3.64097063,88.809,88.761,3.87779909]
[1772740639324,3.5727753,88.8,88.761,3.87779909]
[1772740639515,3.64097063,88.809,88.761,3.87779909]
[1772740639714,17.44078623,88.857,88.725,20.284]
[1772740639715,7.21374593,88.82,88.77,3.87779909]
[1772740639914,3.64097063,88.809,88.757,3.87779909]
[1772740640619,3.64097063,88.809,88.766,10.137]
[1772740641011,3.64097063,88.809,88.725,20.284]
[1772740641012,3.5727753,88.82,88.767,3.87779909]
[1772740641215,7.21374593,88.82,88.767,3.87779909]
[1772740641417,3.64097063,88.819,88.77,7.45057439]
[1772740641816,3.64097063,88.819,88.771,3.87779909]
[1772740642320,3.64097063,88.819,88.781,10.135]
[1772740644425,3.5727753,88.81,88.773,10.136]
[1772740645025,3.5727753,88.81,88.78,10.135]
[1772740646125,3.5727753,88.81,88.771,3.87779909]
[1772740646522,3.64097063,88.819,88.771,3.87779909]
[1772740647125,3.5727753,88.81,88.771,3.87779909]
[1772740647324,3.64097063,88.819,88.771,3.87779909]
[1772740647530,3.64097063,88.819,88.775,3.87779909]
[1772740648934,3.5727753,88.83,88.78,3.5727753]
[1772740649136,3.77176714,88.833,88.781,3.84902657]
[1772740649825,3.77176714,88.833,88.793,10.134]
[1772740650230,3.77176714,88.833,88.781,3.84902657]
[1772740651336,13.90076714,88.833,88.786,10.135]
[1772740651635,7.23607278,88.82,88.781,3.84902657]
[1772740654327,10.131,88.815,88.781,3.84902657]
[1772740654532,3.66329748,88.814,88.768,3.817089]
[1772740655430,3.5727753,88.81,88.768,3.817089]
[1772740655835,3.66329748,88.814,88.768,3.817089]
[1772740656036,3.66329748,88.814,88.77,3.5727753]
[1772740656334,3.66329748,88.814,88.773,13.953089]
[1772740656641,3.66329748,88.814,88.774,3.817089]
[1772740659437,3.66329748,88.814,88.775,10.136]
[1772740662441,3.66329748,88.814,88.774,3.817089]
[1772740664243,8.99342704,88.857,88.757,3.817089]
[1772740664244,3.66329748,88.799,88.757,3.817089]
[1772740665547,3.66329748,88.799,88.759,10.138]
[1772740666248,10.132,88.809,88.764,3.817089]
[1772740666646,3.66329748,88.809,88.764,3.817089]
[1772740667446,10.133,88.803,88.764,3.817089]
[1772740670253,3.57128145,88.79,88.748,3.817089]
[1772740670550,3.66329748,88.799,88.75,3.57128145]
[1772740670745,3.66329748,88.799,88.751,3.817089]
[1772740670941,10.134,88.797,88.753,13.955089]
[1772740671152,10.134,88.797,88.754,3.817089]
[1772740671550,13.79729748,88.797,88.754,3.817089]
[1772740672546,3.66329748,88.809,88.769,3.817089]
[1772740675050,3.66329748,88.809,88.771,10.136]
[1772740675258,10.131,88.816,88.772,3.817089]
[1772740675950,13.79429748,88.816,88.772,3.817089]
[1772740676153,3.66329748,88.815,88.772,3.817089]
[1772740677559,3.66329748,88.809,88.764,10.137]
[1772740677858,3.66329748,88.809,88.758,3.817089]
[1772740678252,3.57128145,88.8,88.758,3.817089]
[1772740679257,3.66329748,88.797,88.75,13.71028145]
[1772740679461,3.66329748,88.789,88.744,3.817089]
[1772740680362,13.93183912,88.787,88.744,3.817089]
[1772740680559,3.79683912,88.786,88.744,3.817089]
[1772740681252,10.135,88.784,88.744,3.817089]
[1772740682158,3.57128145,88.78,88.744,3.817089]
[1772740682358,3.57128145,88.77,88.73,3.91350476]
[1772740682859,10.137,88.767,88.73,3.91350476]
[1772740684362,3.79683912,88.797,88.741,3.91350476]
[1772740684558,3.79683912,88.797,88.751,3.91350476]
[1772740684759,3.79683912,88.809,88.761,3.91350476]
[1772740684960,3.79683912,88.809,88.769,3.91350476]
[1772740685366,3.79683912,88.809,88.77,3.57128145]
[1772740685964,3.57128145,88.8,88.762,10.137]
[1772740686169,3.79683912,88.799,88.754,3.91350476]
[1772740686770,3.79683912,88.799,88.76,7.48478621]
[1772740686972,3.57128145,88.81,88.761,3.91350476]
[1772740687667,3.79683912,88.812,88.761,3.91350476]
[1772740687871,3.79683912,88.812,88.74,20.96610634]
[1772740687872,3.79683912,88.812,88.771,3.91350476]
[1772740688571,3.57128145,88.81,88.774,10.136]
[1772740688772,3.79683912,88.809,88.774,10.136]
[1772740690373,3.79683912,88.809,88.759,10.138]
[1772740690574,3.79683912,88.809,88.759,14.05150476]
[1772740692572,3.79683912,88.809,88.76,3.91350476]
[1772740692767,3.79683912,88.809,88.76,7.48478621]
[1772740693567,3.79683912,88.799,88.752,10.139]
[1772740693767,3.79683912,88.799,88.753,3.91350476]
[1772740696275,3.79683912,88.799,88.755,3.91350476]
[1772740697467,3.79683912,88.799,88.76,10.138]
[1772740698178,3.79683912,88.799,88.755,3.91350476]
[1772740698378,3.79683912,88.789,88.741,3.91350476]
[1772740698979,3.79683912,88.802,88.761,3.91350476]
[1772740700581,3.79683912,88.789,88.74,3.91350476]
[1772740701278,3.57128145,88.78,88.74,3.91350476]
[1772740703572,3.79683912,88.787,88.74,3.91350476]
[1772740705380,3.79683912,88.779,88.73,3.57128145]
[1772740705576,3.79683912,88.779,88.731,3.91350476]
[1772740706582,3.79683912,88.779,88.737,3.91350476]
[1772740707281,3.79683912,88.779,88.739,3.91350476]
[1772740709688,3.75000557,88.806,88.752,3.96943124]
[1772740710187,3.80283354,88.798,88.752,3.96943124]
[1772740710383,3.80283354,88.789,88.741,3.78502808]
[1772740710783,3.80283354,88.789,88.749,10.139]
[1772740710984,3.80283354,88.789,88.75,3.78502808]
[1772740711590,3.57128145,88.8,88.761,3.78502808]
[1772740711786,3.80283354,88.806,88.761,3.78502808]
[1772740713397,3.80283354,88.806,88.768,10.137]
[1772740713700,3.80283354,88.806,88.761,3.78502808]
[1772740714399,3.80283354,88.806,88.762,3.78502808]
[1772740715796,3.80283354,88.799,88.753,10.138]
[1772740716895,10.133,88.798,88.753,10.138]
[1772740717096,3.80283354,88.789,88.743,10.14]
[1772740717300,3.80283354,88.789,88.737,3.78502808]
[1772740718498,3.80283354,88.787,88.739,3.78502808]
[1772740718699,3.80283354,88.787,88.74,3.57128145]
[1772740719001,10.135,88.784,88.74,13.71128145]
[1772740719303,3.80283354,88.783,88.74,13.71128145]
[1772740720104,3.80283354,88.783,88.741,3.78502808]
[1772740720503,10.135,88.781,88.741,3.78502808]
[1772740720705,13.93783354,88.781,88.741,3.78502808]
[1772740721803,10.137,88.77,88.733,10.141]
[1772740722203,3.80283354,88.779,88.733,10.141]
[1772740722405,3.80283354,88.779,88.736,10.14]
[1772740723402,3.80283354,88.779,88.718,20.96610634]
[1772740723403,3.80283354,88.791,88.741,3.78502808]
[1772740723601,3.80283354,88.802,88.751,3.78502808]
[1772740723803,3.80283354,88.802,88.76,3.57406781]
[1772740724711,3.80283354,88.802,88.754,10.138]
[1772740724909,3.80283354,88.802,88.751,3.78502808]
[1772740728510,3.80283354,88.799,88.751,3.78502808]
[1772740730410,3.80283354,88.799,88.751,13.92402808]
[1772740731411,3.80283354,88.799,88.754,10.138]
[1772740732612,3.80283354,88.799,88.754,13.92302808]
[1772740734414,3.80283354,88.799,88.758,3.78502808]
[1772740736312,3.80283354,88.796,88.758,3.78502808]
[1772740737618,3.80283354,88.791,88.75,10.139]
[1772740738318,3.80283354,88.779,88.733,3.78502808]
[1772740738819,13.93883354,88.779,88.736,3.78502808]
[1772740740316,3.57406781,88.79,88.741,3.8088172]
[1772740740514,3.62842972,88.793,88.751,3.8088172]
[1772740741515,3.62842972,88.793,88.752,3.8088172]
[1772740743919,3.57406781,88.79,88.752,3.8088172]
[1772740744824,7.20249753,88.79,88.752,3.8088172]
[1772740745025,3.62842972,88.789,88.752,3.8088172]
[1772740745225,3.62842972,88.789,88.751,10.139]
[1772740748628,3.62842972,88.789,88.752,3.8088172]
[1772740748825,8.92844569,88.817,88.755,3.8088172]
[1772740748826,3.57406781,88.8,88.755,3.8088172]
[1772740749126,3.62842972,88.799,88.755,3.8088172]
[1772740750426,3.62842972,88.796,88.755,3.8088172]
[1772740750830,3.57406781,88.8,88.725,20.96610634]
[1772740750831,3.62842972,88.789,88.746,10.139]
[1772740751232,3.62842972,88.789,88.746,13.9478172]
[1772740751427,3.62842972,88.789,88.747,3.8088172]
[1772740752530,3.57406781,88.8,88.749,3.8088172]
[1772740754535,3.57406781,88.8,88.758,3.8088172]
[1772740755135,3.62842972,88.799,88.758,3.8088172]
[1772740761742,10.133,88.798,88.758,3.8088172]
[1772740761946,3.62842972,88.797,88.758,3.8088172]
[1772740762244,3.62842972,88.797,88.75,10.139]
[1772740762440,3.62842972,88.797,88.751,3.8088172]
[1772740762646,3.62842972,88.797,88.754,13.9468172]
[1772740762848,3.62842972,88.797,88.755,3.8088172]
[1772740764849,3.62842972,88.795,88.755,3.8088172]
[1772740765149,3.62842972,88.789,88.747,10.139]
[1772740765344,3.62842972,88.787,88.742,3.8088172]
[1772740765541,157.541,88.852,88.742,3.8088172]
[1772740765542,7.20249753,88.78,88.742,3.8088172]
[1772740766953,3.62842972,88.775,88.731,10.141]
[1772740767148,3.57406781,88.78,88.732,3.8088172]
[1772740767947,10.136,88.779,88.74,3.78718029]
[1772740768151,3.62842972,88.787,88.74,7.3612481]
[1772740768353,3.62842972,88.787,88.741,3.78718029]
[1772740769352,10.135,88.786,88.742,10.14]
[1772740769555,3.75108426,88.785,88.742,13.92718029]
[1772740769755,3.75108426,88.779,88.742,3.78718029]
[1772740771256,3.57406781,88.78,88.742,3.78718029]
[1772740771560,7.18347591,88.78,88.742,3.78718029]
[1772740771753,7.18347591,88.78,88.743,10.14]
[1772740772354,7.18347591,88.78,88.742,3.78718029]
[1772740772756,3.6094081,88.779,88.731,3.82918448]
[1772740772958,3.6094081,88.779,88.742,10.14]
[1772740774657,3.57406781,88.78,88.746,3.82918448]
[1772740774857,10.135,88.788,88.746,3.82918448]
[1772740775159,3.6094081,88.787,88.746,3.82918448]
[1772740775668,13.7444081,88.784,88.746,3.82918448]
[1772740776360,3.6094081,88.779,88.734,10.141]
[1772740777467,10.136,88.776,88.734,13.97018448]
[1772740777665,3.6094081,88.779,88.742,10.14]
[1772740778064,3.57406781,88.79,88.745,3.82918448]
[1772740778262,3.6094081,88.789,88.745,3.82918448]
[1772740779469,10.135,88.786,88.745,3.82918448]
[1772740780167,10.135,88.786,88.746,10.139]
[1772740780466,3.6094081,88.789,88.746,10.139]
[1772740781267,3.6094081,88.787,88.746,10.139]
[1772740781470,3.6094081,88.779,88.738,10.14]
[1772740782364,3.6094081,88.779,88.744,10.139]
[1772740782668,3.6094081,88.789,88.745,3.82918448]
[1772740782863,3.6094081,88.789,88.744,10.139]
[1772740783461,7.18347591,88.78,88.744,10.139]
[1772740784469,7.18371884,88.78,88.744,10.139]
[1772740784971,7.18371884,88.78,88.738,3.82918448]
[1772740787874,3.6094081,88.769,88.723,3.82918448]
[1772740788071,3.57431074,88.76,88.723,3.82918448]
[1772740788270,7.18371884,88.76,88.723,3.82918448]
[1772740789874,7.18371884,88.76,88.724,13.97218448]
[1772740790277,3.57431074,88.77,88.725,3.82918448]
[1772740790673,3.57431074,88.78,88.731,3.82918448]
[1772740791475,7.18371884,88.78,88.731,3.82918448]
[1772740791675,3.6094081,88.794,88.746,3.82918448]
[1772740791881,3.6094081,88.806,88.751,3.82918448]
[1772740792479,3.6094081,88.799,88.752,13.96918448]
[1772740792870,3.6094081,88.799,88.753,3.82918448]
[1772740793682,3.6094081,88.799,88.754,10.139]
[1772740793876,3.6094081,88.799,88.754,13.96818448]
[1772740794179,3.57431074,88.79,88.754,13.96818448]
[1772740794381,3.57431074,88.79,88.754,3.82918448]
[1772740794975,3.6094081,88.789,88.744,10.14]
[1772740795174,7.18371884,88.78,88.744,10.14]
[1772740795380,3.6094081,88.78,88.744,10.14]
[1772740795881,3.6094081,88.78,88.742,3.82918448]
[1772740796577,3.6094081,88.78,88.736,10.141]
[1772740796578,3.6094081,88.779,88.736,10.141]
[1772740796979,3.57431074,88.76,88.713,24.79529082]
[1772740797179,7.18371884,88.76,88.713,3.82918448]
[1772740798377,7.18371884,88.76,88.719,10.143]
[1772740798578,3.6094081,88.759,88.713,3.82918448]
[1772740798780,7.18371884,88.75,88.701,3.82918448]
[1772740798981,10.14,88.749,88.704,3.82918448]
[1772740799677,3.57431074,88.74,88.695,13.97518448]
[1772740799878,3.57431074,88.75,88.701,3.82918448]
[1772740800378,8.44097327,88.786,88.663,20.3]
[1772740800379,10.46458416,88.78,88.711,3.98892754]
[1772740800577,3.57431074,88.76,88.711,3.98892754]
[1772740800782,3.57431074,88.76,88.713,3.98892754]
[1772740801284,3.57431074,88.76,88.664,27.9244451]
[1772740801285,3.57431074,88.77,88.721,3.98892754]
[1772740801684,3.57431074,88.76,88.721,3.98892754]
[1772740801988,7.30446722,88.78,88.731,3.98892754]
[1772740802176,10.46458416,88.803,88.731,3.98892754]
[1772740802177,3.57431074,88.77,88.731,3.98892754]
[1772740802375,3.73015648,88.779,88.731,3.98892754]
[1772740802574,3.57431074,88.77,88.731,3.98892754]
[1772740802777,3.73015648,88.779,88.74,7.56323828]
[1772740802977,3.57431074,88.79,88.741,3.98892754]
[1772740803179,3.73015648,88.793,88.751,3.98892754]
[1772740803384,3.57431074,88.8,88.751,3.98892754]
[1772740803980,3.73015648,88.789,88.74,3.57431074]
[1772740804387,3.73015648,88.789,88.741,3.98892754]
[1772740804583,17.39329253,88.808,88.75,3.57431074]
[1772740804888,3.73015648,88.821,88.78,3.57431074]
[1772740805278,3.73015648,88.821,88.771,3.98892754]
[1772740806190,3.73015648,88.821,88.78,3.57431074]
[1772740807184,17.40851087,88.83,88.79,3.57431074]
[1772740807489,8.95599007,88.836,88.79,3.57431074]
[1772740807694,3.73015648,88.837,88.79,3.57431074]
[1772740808481,3.73015648,88.837,88.781,3.98892754]
[1772740808890,3.57431074,88.83,88.781,3.98892754]
[1772740809486,3.73015648,88.827,88.781,3.98892754]
[1772740810186,3.73015648,88.838,88.791,3.98892754]
[1772740810487,3.73015648,88.849,88.791,3.98892754]
[1772740810692,10.13,88.838,88.791,3.98892754]
[1772740812389,3.73015648,88.829,88.78,3.57431074]
[1772740812591,3.57431074,88.83,88.776,3.98892754]
[1772740812592,3.57431074,88.81,88.776,3.98892754]
[1772740812791,3.73015648,88.819,88.776,3.98892754]
[1772740817898,3.73015648,88.819,88.713,27.9244451]
[1772740817899,3.73015648,88.852,88.81,3.57431074]
[1772740818100,3.73015648,88.849,88.8,3.57431074]
[1772740818299,3.73015648,88.848,88.8,3.57431074]
[1772740818690,3.73015648,88.848,88.794,3.98892754]
[1772740818691,3.73015648,88.848,88.81,3.57431074]
[1772740818896,10.128,88.853,88.81,3.57431074]
[1772740819098,3.73015648,88.839,88.791,3.98892754]
[1772740819496,3.73015648,88.839,88.8,3.57431074]
[1772740819799,3.57431074,88.85,88.801,3.98892754]
[1772740819996,3.73015648,88.849,88.801,3.98892754]
[1772740820300,13.85915648,88.849,88.801,3.98892754]
[1772740821001,10.129,88.842,88.801,3.98892754]
[1772740823000,3.73015648,88.841,88.801,3.98892754]
[1772740823802,3.73015648,88.838,88.79,3.57431074]
[1772740824101,3.73015648,88.838,88.791,3.98892754]
[1772740824402,3.73015648,88.838,88.79,3.57431074]
[1772740824403,13.86015648,88.838,88.793,3.98892754]
[1772740824603,3.73015648,88.837,88.793,3.98892754]
[1772740824898,3.73015648,88.835,88.79,3.57431074]
[1772740825301,3.73015648,88.835,88.791,3.98892754]
[1772740828104,3.81038289,88.833,88.791,3.98892754]
[1772740828508,3.81038289,88.829,88.791,3.98892754]
[1772740828896,3.81038289,88.827,88.78,3.57431074]
[1772740829203,3.81038289,88.809,88.763,3.98799606]
[1772740829407,10.133,88.808,88.763,3.98799606]
[1772740830510,10.134,88.8,88.763,3.98799606]
[1772740830906,13.70831074,88.8,88.763,3.98799606]
[1772740831108,10.134,88.8,88.763,3.98799606]
[1772740831805,3.57431074,88.79,88.747,3.76988275]
[1772740832009,3.57431074,88.78,88.747,3.76988275]
[1772740832304,7.54298083,88.82,88.771,3.76988275]
[1772740832504,3.96867009,88.819,88.771,3.76988275]
[1772740832700,3.57431074,88.81,88.771,3.76988275]
[1772740834310,3.57431074,88.8,88.76,3.76988275]
[1772740835110,10.134,88.803,88.76,3.76988275]
[1772740836206,3.57431074,88.82,88.771,3.76988275]
[1772740837411,3.57431074,88.82,88.772,13.90688275]
[1772740837611,3.57431074,88.81,88.76,3.57431074]
[1772740837812,3.57431074,88.81,88.761,3.76988275]
[1772740838511,3.57431074,88.81,88.763,13.90788275]
[1772740839312,3.57431074,88.81,88.765,10.138]
[1772740840613,3.96867009,88.809,88.76,3.76988275]
[1772740841412,14.10167009,88.808,88.76,3.76988275]
[1772740841711,3.96867009,88.807,88.76,3.76988275]
[1772740842312,3.96867009,88.804,88.76,3.76988275]
[1772740842513,3.96867009,88.804,88.76,7.34419349]
[1772740842713,10.134,88.799,88.75,3.57431074]
[1772740842914,14.10267009,88.799,88.751,3.76988275]
[1772740843116,20.26,88.84,88.751,3.76988275]
[1772740843117,3.57431074,88.79,88.751,3.76988275]
[1772740843411,3.57431074,88.81,88.751,3.76988275]
[1772740843616,3.57431074,88.81,88.761,3.76988275]
[1772740843915,3.57431074,88.8,88.761,3.76988275]
[1772740844616,10.133,88.808,88.761,3.76988275]